[Event "NJSK 2023 Jeugd C"]
[Site "Almelo, Netherlands"]
[Date "2023.05.02"]
[Round "4.6"]
[White "Fallaux, Storm"]
[Black "Roolvink, William"]
[Result "0-1"]
[TimeControl "90min/40moves + 30min + 30sec/move"]
[WhiteElo "1650"]
[BlackElo "1852"]

1. e4 {[%clk 01:30:57]} {[%emt 00:00:03]} c6 {[%emt 00:00:10]} 2. d4 {[%clk
01:31:19]} d5 {[%clk 01:31:27]} {[%emt 00:00:02]} 3. Nc3 {[%clk 01:31:43]}
{[%emt 00:00:06]} dxe4 {[%clk 01:31:53]} {[%emt 00:00:03]} 4. Nxe4 {[%clk
01:32:08]} {[%emt 00:00:05]} Nf6 {[%clk 01:32:22]} {[%emt 00:00:01]} 5. Nxf6+
{[%clk 01:32:32]} {[%emt 00:00:07]} exf6 {[%clk 01:32:49]} {[%emt 00:00:03]} 6.
c3 {[%clk 01:32:52]} {[%emt 00:00:10]} Bd6 {[%clk 01:33:18]} 7. Bd3 {[%clk
01:33:17]} {[%emt 00:00:06]} O-O {[%clk 01:33:45]} {[%emt 00:00:03]} 8. Ne2
{[%clk 01:33:42]} {[%emt 00:00:05]} Re8 {[%clk 01:34:01]} {[%emt 00:00:13]} 9.
O-O {[%clk 01:33:56]} {[%emt 00:00:16]} Nd7 {[%clk 01:33:20]} {[%emt 00:01:12]}
10. Qc2 {[%clk 01:33:33]} {[%emt 00:00:53]} Nf8 {[%clk 01:33:10]} {[%emt
00:00:39]} 11. Bd2 {[%clk 01:33:25]} {[%emt 00:00:38]} Ng6 {[%clk 01:16:09]}
{[%emt 00:17:32]} 12. Rae1 {[%clk 01:31:40]} {[%emt 00:02:15]} Be6 {[%clk
01:14:43]} {[%emt 00:01:56]} 13. f4 {[%clk 01:29:30]} {[%emt 00:02:39]} Bd7
{[%clk 01:05:00]} {[%emt 00:10:13]} 14. f5 {[%clk 01:26:42]} {[%emt 00:03:18]}
Nf8 {[%clk 01:04:51]} {[%emt 00:00:39]} 15. Bf4 {[%clk 01:21:57]} {[%emt
00:05:16]} Qc7 {[%clk 01:02:24]} {[%emt 00:02:57]} 16. Bxd6 {[%clk 01:19:58]}
{[%emt 00:02:28]} Qxd6 {[%clk 01:01:49]} {[%emt 00:01:05]} 17. Ng3 {[%clk
01:19:50]} {[%emt 00:00:39]} Rxe1 {[%clk 00:56:39]} {[%emt 00:05:39]} 18. Rxe1
{[%clk 01:20:17]} {[%emt 00:00:04]} Re8 {[%clk 00:56:18]} {[%emt 00:00:50]} 19.
Rxe8 {[%clk 01:19:30]} {[%emt 00:01:17]} Bxe8 {[%clk 00:56:28]} {[%emt
00:00:19]} 20. Qe2 {[%clk 01:18:16]} {[%emt 00:01:44]} Bd7 {[%clk 00:55:28]}
{[%emt 00:01:30]} 21. Ne4 {[%clk 01:15:36]} {[%emt 00:03:10]} Qd5 {[%clk
00:44:25]} {[%emt 00:11:35]} 22. Qg4 {[%clk 01:13:24]} {[%emt 00:02:41]} Kh8
{[%clk 00:42:29]} {[%emt 00:02:26]} 23. Nc5 {[%clk 01:02:38]} {[%emt 00:11:16]}
Bc8 {[%clk 00:15:36]} {[%emt 00:27:23]} 24. Qe2 {[%clk 01:01:32]} {[%emt
00:01:36]} b6 {[%clk 00:14:30]} {[%emt 00:01:37]} 25. Qe8 {[%clk 00:57:39]}
{[%emt 00:04:22]} Kg8 {[%clk 00:13:57]} {[%emt 00:01:02]} 26. Be4 {[%clk
00:54:04]} {[%emt 00:04:05]} Qxa2 {[%clk 00:12:44]} {[%emt 00:01:43]} 27. Qxc8
{[%clk 00:49:53]} {[%emt 00:04:41]} bxc5 {[%clk 00:12:20]} {[%emt 00:00:54]} 28.
dxc5 {[%clk 00:48:15]} {[%emt 00:02:08]} Qa1+ {[%clk 00:12:22]} {[%emt
00:00:28]} 29. Kf2 {[%clk 00:48:16]} {[%emt 00:00:29]} Qxb2+ {[%clk 00:12:46]}
{[%emt 00:00:06]} 30. Kf1 {[%clk 00:48:03]} {[%emt 00:00:43]} Qb5+ {[%clk
00:08:21]} {[%emt 00:04:55]} 31. Kf2 {[%clk 00:48:00]} {[%emt 00:00:33]} Qxc5+
{[%clk 00:08:41]} {[%emt 00:00:10]} 32. Ke2 {[%clk 00:48:01]} {[%emt 00:00:29]}
Qc4+ {[%clk 00:08:53]} {[%emt 00:00:19]} 33. Bd3 {[%clk 00:47:43]} {[%emt
00:00:47]} Qxc3 {[%clk 00:09:14]} {[%emt 00:00:10]} 34. Qa6 {[%clk 00:46:28]}
{[%emt 00:01:44]} Qb2+ {[%clk 00:08:25]} {[%emt 00:01:19]} 35. Kf3 {[%clk
00:45:46]} {[%emt 00:01:12]} Qb6 {[%clk 00:08:19]} {[%emt 00:00:36]} 36. Qc8
{[%clk 00:45:08]} {[%emt 00:01:08]} a5 {[%clk 00:06:55]} {[%emt 00:01:54]} 37.
Qa8 {[%clk 00:43:30]} {[%emt 00:02:08]} Qb3 {[%clk 00:06:25]} {[%emt 00:00:57]}
38. Ke2 {[%clk 00:43:22]} {[%emt 00:00:42]} Qb2+ {[%clk 00:06:12]} {[%emt
00:00:43]} 39. Kf3 {[%clk 00:43:11]} {[%emt 00:00:41]} Qc3 {[%clk 00:06:37]}
{[%emt 00:00:04]} 40. Ke2 {[%clk 00:43:25]} {[%emt 00:00:17]} c5 {[%clk
00:06:34]} {[%emt 00:00:33]} 41. Qa6 {[%clk 00:43:12]} {[%emt 00:00:39]} Qb4
{[%clk 00:05:51]} {[%emt 00:01:16]} 42. Bb5 {[%clk 00:43:11]} {[%emt 00:00:31]}
Qe4+ {[%clk 00:05:52]} {[%emt 00:00:29]} 43. Kd1 {[%clk 00:43:16]} {[%emt
00:00:25]} Qxg2 {[%clk 00:05:25]} {[%emt 00:00:57]} 44. Qxa5 {[%clk 00:43:14]}
{[%emt 00:00:34]} Qg1+ {[%clk 00:05:24]} {[%emt 00:00:30]} 45. Qe1 {[%clk
00:43:11]} {[%emt 00:00:33]} Qxh2 {[%clk 00:05:42]} {[%emt 00:00:11]} 46. Bd3
{[%clk 00:41:16]} {[%emt 00:02:25]} Qe5 {[%clk 00:04:59]} {[%emt 00:01:13]} 47.
Qf1 {[%clk 00:40:23]} {[%emt 00:01:23]} Qa1+ {[%clk 00:05:10]} {[%emt
00:00:19]} 48. Kd2 {[%clk 00:40:48]} {[%emt 00:00:05]} Qxf1 {[%clk 00:05:31]}
{[%emt 00:00:10]} 49. Bxf1 {[%clk 00:41:13]} {[%emt 00:00:05]} Nd7 {[%clk
00:05:36]} {[%emt 00:00:24]} 50. Kc3 {[%clk 00:41:37]} {[%emt 00:00:07]} Ne5
{[%clk 00:05:57]} {[%emt 00:00:08]} 51. Be2 {[%clk 00:41:49]} {[%emt 00:00:19]}
g6 {[%clk 00:06:12]} {[%emt 00:00:15]} 52. Kd2 {[%clk 00:42:08]} {[%emt
00:00:11]} h5 {[%clk 00:06:27]} {[%emt 00:00:15]} 53. Ke3 {[%clk 00:42:25]}
{[%emt 00:00:12]} Kg7 {[%clk 00:06:50]} {[%emt 00:00:06]} 54. Kf4 {[%clk
00:42:49]} {[%emt 00:00:07]} g5+ {[%clk 00:06:33]} {[%emt 00:00:48]} 55. Ke4
{[%clk 00:43:03]} {[%emt 00:00:15]} h4 {[%clk 00:06:34]} {[%emt 00:00:28]} 0-1

[Event "NJSK 2023 Jeugd C"]
[Site "Almelo, Netherlands"]
[Date "2023.05.02"]
[Round "4.7"]
[White "Terlouw, Wouter"]
[Black "Wortman, Rawi"]
[Result "1-0"]
[TimeControl "90min/40moves + 30min + 30sec/move"]
[WhiteElo "1923"]
[BlackElo "1668"]

1. d4 {[%clk 01:30:56]} {[%emt 00:00:04]} Nf6 {[%clk 01:30:56]} {[%emt
00:00:05]} 2. c4 {[%clk 01:31:00]} {[%emt 00:00:26]} e6 {[%clk 01:31:20]}
{[%emt 00:00:06]} 3. Nf3 {[%clk 01:31:27]} {[%emt 00:00:03]} d5 {[%clk
01:31:44]} {[%emt 00:00:07]} 4. Nc3 {[%clk 01:31:53]} {[%emt 00:00:04]} Bb4
{[%clk 01:31:55]} {[%emt 00:00:18]} 5. Qa4+ {[%clk 01:32:14]} {[%emt 00:00:09]}
Nc6 {[%clk 01:32:11]} {[%emt 00:00:15]} 6. e3 {[%clk 01:32:34]} {[%emt
00:00:08]} O-O {[%clk 01:31:57]} {[%emt 00:00:45]} 7. Bd2 {[%clk 01:32:55]}
{[%emt 00:00:08]} Bd7 {[%clk 01:31:10]} {[%emt 00:01:18]} 8. Qc2 {[%clk
01:33:19]} {[%emt 00:00:06]} Ne7 {[%clk 01:26:47]} {[%emt 00:04:52]} 9. Bd3
{[%clk 01:30:46]} {[%emt 00:03:04]} dxc4 {[%clk 01:26:53]} {[%emt 00:00:25]} 10.
Bxc4 {[%clk 01:31:10]} {[%emt 00:00:06]} Bc6 {[%clk 01:25:28]} {[%emt
00:01:54]} 11. Bd3 {[%clk 01:30:29]} {[%emt 00:01:10]} Ng6 {[%clk 01:23:21]}
{[%emt 00:02:38]} 12. e4 {[%clk 01:29:42]} {[%emt 00:01:18]} Qe7 {[%clk
01:21:40]} {[%emt 00:02:11]} 13. h4 {[%clk 01:28:44]} {[%emt 00:01:28]} Nh5
{[%clk 01:21:02]} {[%emt 00:01:08]} 14. g4 {[%clk 00:59:24]} {[%emt 00:29:50]}
Qf6 {[%clk 01:12:59]} {[%emt 00:08:32]} 15. Ng5 {[%clk 00:53:11]} {[%emt
00:06:41]} Nhf4 {[%clk 01:12:20]} {[%emt 00:01:12]} 16. e5 {[%clk 00:52:47]}
{[%emt 00:00:53]} Qd8 {[%clk 01:07:30]} {[%emt 00:05:20]} 17. Bxf4 {[%clk
00:46:38]} {[%emt 00:06:39]} Bxh1 {[%clk 01:06:06]} {[%emt 00:01:54]} 18. Be3
{[%clk 00:45:27]} {[%emt 00:01:39]} h6 {[%clk 01:03:19]} {[%emt 00:03:19]} 19.
Nxf7 {[%clk 00:34:36]} {[%emt 00:11:22]} Rxf7 {[%clk 01:01:19]} {[%emt
00:02:30]} 20. Bxg6 {[%clk 00:34:59]} {[%emt 00:00:07]} Rf8 {[%clk 01:00:30]}
{[%emt 00:01:20]} 21. g5 {[%clk 00:33:11]} {[%emt 00:02:16]} hxg5 {[%clk
00:58:53]} {[%emt 00:02:09]} 22. O-O-O {[%clk 00:31:59]} {[%emt 00:01:42]} Bf3
{[%clk 00:57:39]} {[%emt 00:01:44]} 23. Bxg5 {[%clk 00:32:08]} {[%emt
00:00:21]} Qd7 {[%clk 00:57:27]} {[%emt 00:00:41]} 24. Rd2 {[%clk 00:24:05]}
{[%emt 00:08:31]} Be7 {[%clk 00:51:13]} {[%emt 00:06:46]} 25. Ne4 {[%clk
00:20:29]} {[%emt 00:04:04]} Bb4 {[%clk 00:43:48]} {[%emt 00:07:58]} 26. Rd3
{[%clk 00:17:23]} {[%emt 00:03:35]} Qd5 {[%clk 00:40:24]} {[%emt 00:03:54]} 27.
Ng3 {[%clk 00:07:31]} {[%emt 00:10:22]} Qxa2 {[%clk 00:38:25]} {[%emt
00:02:30]} 28. h5 {[%clk 00:06:05]} {[%emt 00:01:55]} Qa1+ {[%clk 00:37:19]}
{[%emt 00:01:36]} 29. Qb1 {[%clk 00:06:31]} {[%emt 00:00:04]} Qxb1+ {[%clk
00:37:45]} {[%emt 00:00:05]} 30. Kxb1 {[%clk 00:07:00]} Bxh5 {[%clk 00:25:59]}
{[%emt 00:12:15]} 31. Nxh5 {[%clk 00:05:56]} {[%emt 00:01:35]} Rxf2 {[%clk
00:26:16]} {[%emt 00:00:13]} 32. Rg3 {[%clk 00:03:47]} {[%emt 00:02:37]} Raf8
{[%clk 00:24:49]} {[%emt 00:01:57]} 33. Be4 {[%clk 00:03:32]} {[%emt 00:00:38]}
b6 {[%clk 00:21:40]} {[%emt 00:03:47]} 34. Bf6 {[%clk 00:02:55]} {[%emt
00:01:08]} Rf7 {[%clk 00:19:02]} {[%emt 00:03:08]} 35. Nxg7 {[%clk 00:02:55]}
{[%emt 00:00:29]} Kf8 {[%clk 00:19:04]} {[%emt 00:00:27]} 36. Nxe6+ {[%clk
00:03:10]} {[%emt 00:00:15]} Ke8 {[%clk 00:19:29]} {[%emt 00:00:05]} 37. Bc6+
{[%clk 00:03:30]} {[%emt 00:00:10]} 1-0

[Event "NJSK 2023 Jeugd C"]
[Site "Almelo, Netherlands"]
[Date "2023.05.02"]
[Round "4.8"]
[White "Ambrona Navarro, Himar"]
[Black "Lopes, Samuel"]
[Result "0-1"]
[TimeControl "90min/40moves + 30min + 30sec/move"]
[WhiteElo "1834"]
[BlackElo "1865"]

1. d4 {[%clk 01:30:56]} {[%emt 00:00:04]} d5 {[%clk 01:30:53]} {[%emt
00:00:08]} 2. Bf4 {[%clk 01:30:54]} {[%emt 00:00:30]} Nf6 {[%clk 01:31:14]}
{[%emt 00:00:10]} 3. e3 {[%clk 01:30:57]} {[%emt 00:00:22]} e6 {[%clk
01:31:30]} {[%emt 00:00:19]} 4. Nf3 {[%clk 01:30:54]} {[%emt 00:00:32]} Bd6
{[%clk 01:31:49]} {[%emt 00:00:13]} 5. Bg3 {[%clk 01:30:42]} {[%emt 00:00:41]}
O-O {[%clk 01:32:05]} {[%emt 00:00:14]} 6. Bd3 {[%clk 01:30:37]} {[%emt
00:00:34]} c5 {[%clk 01:32:14]} {[%emt 00:00:23]} 7. c3 {[%clk 01:29:42]}
{[%emt 00:01:24]} Qc7 {[%clk 01:32:19]} {[%emt 00:00:25]} 8. Nbd2 {[%clk
01:28:42]} {[%emt 00:01:29]} Nbd7 {[%clk 01:32:02]} {[%emt 00:00:49]} 9. Bxd6
{[%clk 01:26:48]} {[%emt 00:02:23]} Qxd6 {[%clk 01:31:57]} {[%emt 00:00:36]} 10.
O-O {[%clk 01:26:03]} {[%emt 00:01:14]} e5 {[%clk 01:31:12]} {[%emt 00:01:16]}
11. dxe5 {[%clk 01:23:29]} {[%emt 00:03:04]} Nxe5 {[%clk 01:31:03]} {[%emt
00:00:39]} 12. Nxe5 {[%clk 01:22:52]} {[%emt 00:01:07]} Qxe5 {[%clk 01:31:05]}
{[%emt 00:00:29]} 13. Re1 {[%clk 01:22:11]} {[%emt 00:01:10]} Qc7 {[%clk
01:18:43]} {[%emt 00:12:51]} 14. Qc2 {[%clk 01:17:36]} {[%emt 00:05:04]} h6
{[%clk 01:18:41]} {[%emt 00:00:35]} 15. h3 {[%clk 01:16:24]} {[%emt 00:01:41]}
Bd7 {[%clk 01:17:21]} {[%emt 00:01:50]} 16. Nf3 {[%clk 01:12:21]} {[%emt
00:04:31]} Rfe8 {[%clk 01:13:11]} {[%emt 00:04:42]} 17. Rac1 {[%clk 01:09:06]}
{[%emt 00:03:44]} Rac8 {[%clk 01:12:17]} {[%emt 00:01:26]} 18. c4 {[%clk
01:07:15]} {[%emt 00:02:21]} Be6 {[%clk 01:10:34]} {[%emt 00:02:12]} 19. Bf5
{[%clk 01:02:04]} {[%emt 00:05:41]} Qd7 {[%clk 00:58:03]} {[%emt 00:13:02]} 20.
Bxe6 {[%clk 00:57:00]} {[%emt 00:05:34]} Qxe6 {[%clk 00:56:55]} {[%emt
00:01:38]} 21. Red1 {[%clk 00:55:21]} {[%emt 00:02:07]} b6 {[%clk 00:49:10]}
{[%emt 00:08:17]} 22. cxd5 {[%clk 00:51:19]} {[%emt 00:04:32]} Nxd5 {[%clk
00:48:00]} {[%emt 00:01:39]} 23. Qc4 {[%clk 00:51:23]} {[%emt 00:00:23]} Red8
{[%clk 00:45:34]} {[%emt 00:03:00]} 24. Rd2 {[%clk 00:50:07]} {[%emt 00:01:46]}
Nc7 {[%clk 00:44:16]} {[%emt 00:01:48]} 25. Qxe6 {[%clk 00:48:18]} {[%emt
00:02:19]} Nxe6 {[%clk 00:42:40]} {[%emt 00:02:07]} 26. Rcd1 {[%clk 00:48:34]}
{[%emt 00:00:12]} Rxd2 {[%clk 00:36:15]} {[%emt 00:06:57]} 27. Rxd2 {[%clk
00:45:31]} {[%emt 00:03:32]} Rc7 {[%clk 00:35:41]} {[%emt 00:01:04]} 28. Ne5
{[%clk 00:43:26]} {[%emt 00:02:35]} Kf8 {[%clk 00:34:10]} {[%emt 00:02:01]} 29.
Rd7 {[%clk 00:41:46]} {[%emt 00:02:08]} Rxd7 {[%clk 00:30:57]} {[%emt
00:03:45]} 30. Nxd7+ {[%clk 00:42:11]} {[%emt 00:00:04]} Ke7 {[%clk 00:30:29]}
{[%emt 00:00:58]} 31. Ne5 {[%clk 00:42:33]} {[%emt 00:00:09]} a6 {[%clk
00:29:11]} {[%emt 00:01:48]} 32. f4 {[%clk 00:39:19]} {[%emt 00:03:43]} Nc7
{[%clk 00:24:14]} {[%emt 00:05:27]} 33. g4 {[%clk 00:35:46]} {[%emt 00:04:03]}
f6 {[%clk 00:23:03]} {[%emt 00:01:42]} 34. Nf3 {[%clk 00:34:55]} {[%emt
00:01:20]} Nd5 {[%clk 00:23:07]} {[%emt 00:00:26]} 35. Kf2 {[%clk 00:28:47]}
{[%emt 00:06:39]} Nb4 {[%clk 00:23:08]} {[%emt 00:00:29]} 36. Ke2 {[%clk
00:29:05]} {[%emt 00:00:10]} Nxa2 {[%clk 00:20:23]} {[%emt 00:03:16]} 37. Kd3
{[%clk 00:29:16]} {[%emt 00:00:18]} b5 {[%clk 00:19:08]} {[%emt 00:01:47]} 38.
Ke4 {[%clk 00:29:01]} {[%emt 00:00:44]} Nb4 {[%clk 00:18:45]} {[%emt 00:00:53]}
39. Kf5 {[%clk 00:28:37]} {[%emt 00:00:54]} Kf7 {[%clk 00:18:20]} {[%emt
00:00:56]} 40. Ke4 {[%clk 00:28:00]} {[%emt 00:01:06]} c4 {[%clk 00:17:10]}
{[%emt 00:01:41]} 41. Kd4 {[%clk 00:26:39]} {[%emt 00:01:50]} Nc2+ {[%clk
00:15:58]} {[%emt 00:01:43]} 42. Kc5 {[%clk 00:25:32]} {[%emt 00:01:36]} Nxe3
{[%clk 00:15:35]} {[%emt 00:00:54]} 43. Kb6 {[%clk 00:25:56]} {[%emt 00:00:05]}
b4 {[%clk 00:15:23]} {[%emt 00:00:42]} 44. Nd2 {[%clk 00:21:36]} {[%emt
00:04:50]} c3 {[%clk 00:14:56]} {[%emt 00:00:58]} 45. bxc3 {[%clk 00:21:56]}
{[%emt 00:00:10]} bxc3 {[%clk 00:15:17]} {[%emt 00:00:08]} 46. Nb3 {[%clk
00:22:13]} {[%emt 00:00:11]} Nd5+ {[%clk 00:15:33]} {[%emt 00:00:17]} 47. Kxa6
{[%clk 00:22:00]} {[%emt 00:00:43]} Nxf4 {[%clk 00:15:53]} {[%emt 00:00:10]} 48.
h4 {[%clk 00:17:33]} {[%emt 00:04:56]} Ne2 {[%clk 00:15:54]} {[%emt 00:00:30]}
49. Na1 {[%clk 00:15:59]} {[%emt 00:02:01]} Nd4 {[%clk 00:16:15]} {[%emt
00:00:12]} 0-1

[Event "NJSK 2023 Jeugd C"]
[Site "Almelo, Netherlands"]
[Date "2023.05.02"]
[Round "4.9"]
[White "Chua, Ethan"]
[Black "Katpatal, Akshaj"]
[Result "0-1"]
[TimeControl "90min/40moves + 30min + 30sec/move"]
[WhiteElo "1776"]
[BlackElo "1840"]

1. e4 {[%clk 01:30:57]} {[%emt 00:00:02]} e5 {[%clk 01:30:55]} {[%emt
00:00:05]} 2. Nc3 {[%clk 01:31:24]} {[%emt 00:00:04]} Nc6 {[%clk 01:31:13]}
{[%emt 00:00:12]} 3. Bc4 {[%clk 01:31:49]} {[%emt 00:00:05]} Nf6 {[%clk
01:31:35]} {[%emt 00:00:08]} 4. d3 {[%clk 01:32:15]} {[%emt 00:00:04]} Bc5
{[%clk 01:31:48]} {[%emt 00:00:17]} 5. Bg5 {[%clk 01:32:40]} {[%emt 00:00:05]}
h6 {[%clk 01:31:46]} {[%emt 00:00:33]} 6. Bh4 {[%clk 01:33:05]} {[%emt
00:00:04]} d6 {[%clk 01:30:34]} {[%emt 00:01:43]} 7. Nf3 {[%clk 01:32:28]}
{[%emt 00:01:07]} Bg4 {[%clk 01:30:06]} {[%emt 00:00:57]} 8. h3 {[%clk
01:32:53]} {[%emt 00:00:04]} Be6 {[%clk 01:30:23]} {[%emt 00:00:13]} 9. Nd5
{[%clk 01:32:45]} {[%emt 00:00:38]} Bxd5 {[%clk 01:29:16]} {[%emt 00:01:38]} 10.
Bxf6 {[%clk 01:31:35]} {[%emt 00:01:41]} Qxf6 {[%clk 01:28:24]} {[%emt
00:01:22]} 11. Bxd5 {[%clk 01:31:25]} {[%emt 00:00:39]} Nd4 {[%clk 01:28:40]}
{[%emt 00:00:14]} 12. Nxd4 {[%clk 01:23:12]} {[%emt 00:08:43]} Bxd4 {[%clk
01:29:03]} {[%emt 00:00:07]} 13. O-O {[%clk 01:23:35]} {[%emt 00:00:07]} c6
{[%clk 01:28:32]} {[%emt 00:01:01]} 14. c3 {[%clk 01:22:54]} {[%emt 00:01:11]}
Bb6 {[%clk 01:27:19]} {[%emt 00:01:43]} 15. Bc4 {[%clk 01:22:33]} {[%emt
00:00:50]} O-O {[%clk 01:26:59]} {[%emt 00:00:51]} 16. a4 {[%clk 01:22:58]}
{[%emt 00:00:04]} Rad8 {[%clk 01:27:08]} {[%emt 00:00:21]} 17. a5 {[%clk
01:23:19]} {[%emt 00:00:09]} Bc7 {[%clk 01:27:34]} {[%emt 00:00:05]} 18. Qb3
{[%clk 01:22:27]} {[%emt 00:01:22]} b5 {[%clk 01:25:57]} {[%emt 00:02:07]} 19.
axb6 {[%clk 01:22:48]} {[%emt 00:00:09]} Bxb6 {[%clk 01:26:19]} {[%emt
00:00:07]} 20. Rad1 {[%clk 01:21:47]} {[%emt 00:01:30]} Qf4 {[%clk 01:25:31]}
{[%emt 00:01:19]} 21. Kh1 {[%clk 01:14:51]} {[%emt 00:07:25]} Kh8 {[%clk
01:25:23]} {[%emt 00:00:38]} 22. f3 {[%clk 01:04:25]} {[%emt 00:10:56]} Be3
{[%clk 01:22:07]} {[%emt 00:03:48]} 23. Rde1 {[%clk 01:02:10]} {[%emt
00:02:43]} Qg5 {[%clk 01:18:12]} {[%emt 00:04:26]} 24. g3 {[%clk 01:00:10]}
{[%emt 00:02:30]} Bc5 {[%clk 01:15:13]} {[%emt 00:03:29]} 25. Kg2 {[%clk
01:00:08]} {[%emt 00:00:32]} Qd2+ {[%clk 01:15:30]} {[%emt 00:00:13]} 26. Kh1
{[%clk 01:00:00]} {[%emt 00:00:36]} Rb8 {[%clk 01:15:08]} {[%emt 00:00:53]} 27.
Qd1 {[%clk 00:56:56]} {[%emt 00:03:34]} Qxb2 {[%clk 01:14:44]} {[%emt
00:00:54]} 28. f4 {[%clk 00:56:04]} {[%emt 00:01:22]} Qxc3 {[%clk 01:14:39]}
{[%emt 00:00:33]} 29. f5 {[%clk 00:56:03]} {[%emt 00:00:32]} Rb2 {[%clk
01:14:34]} {[%emt 00:00:36]} 30. Re2 {[%clk 00:54:20]} {[%emt 00:02:13]} Rxe2
{[%clk 01:13:16]} {[%emt 00:01:48]} 31. Qxe2 {[%clk 00:54:43]} {[%emt
00:00:06]} Qd4 {[%clk 01:13:35]} {[%emt 00:00:11]} 32. f6 {[%clk 00:54:45]}
{[%emt 00:00:29]} g6 {[%clk 01:13:53]} {[%emt 00:00:11]} 33. Qg4 {[%clk
00:54:29]} {[%emt 00:00:45]} d5 {[%clk 01:13:14]} {[%emt 00:01:10]} 34. Qh4
{[%clk 00:54:44]} {[%emt 00:00:16]} Kh7 {[%clk 01:13:25]} {[%emt 00:00:19]} 35.
exd5 {[%clk 00:53:22]} {[%emt 00:01:52]} Qxh4 {[%clk 01:13:23]} {[%emt
00:00:31]} 36. gxh4 {[%clk 00:53:48]} {[%emt 00:00:05]} cxd5 {[%clk 01:13:40]}
{[%emt 00:00:13]} 37. Bxd5 {[%clk 00:54:13]} {[%emt 00:00:04]} Kg8 {[%clk
01:13:59]} {[%emt 00:00:11]} 38. h5 {[%clk 00:48:35]} {[%emt 00:06:08]} Rd8
{[%clk 01:11:26]} {[%emt 00:03:03]} 39. Bc4 {[%clk 00:48:31]} {[%emt 00:00:34]}
g5 {[%clk 01:11:36]} {[%emt 00:00:21]} 40. Re1 {[%clk 00:47:29]} {[%emt
00:01:30]} Bd4 {[%clk 01:11:52]} {[%emt 00:00:15]} 41. Rb1 {[%clk 00:42:16]}
{[%emt 00:05:43]} Bb6 {[%clk 01:09:19]} {[%emt 00:03:03]} 42. Rb5 {[%clk
00:41:09]} {[%emt 00:01:36]} Rd6 {[%clk 01:09:37]} {[%emt 00:00:13]} 43. Rxe5
{[%clk 00:41:21]} {[%emt 00:00:18]} Rxf6 {[%clk 01:10:02]} {[%emt 00:00:05]} 44.
Kg2 {[%clk 00:41:37]} {[%emt 00:00:11]} Kg7 {[%clk 01:10:16]} {[%emt 00:00:20]}
45. Re7 {[%clk 00:41:47]} {[%emt 00:00:19]} Bc5 {[%emt 00:04:20]} 46. Rc7
{[%clk 00:41:24]} Rf2+ {[%clk 01:03:16]} {[%emt 00:04:33]} 47. Kg3 {[%clk
00:40:16]} {[%emt 00:01:37]} Rf5 {[%clk 01:02:40]} {[%emt 00:01:07]} 48. Kg2
{[%clk 00:38:48]} {[%emt 00:01:53]} Bb6 {[%clk 00:57:57]} {[%emt 00:05:17]} 49.
Rb7 {[%clk 00:38:48]} {[%emt 00:00:29]} Rf2+ {[%clk 00:57:57]} {[%emt
00:00:31]} 50. Kg3 {[%clk 00:38:59]} {[%emt 00:00:19]} Rf6 {[%clk 00:58:11]}
{[%emt 00:00:17]} 51. Kg2 {[%clk 00:38:56]} {[%emt 00:00:32]} a5 {[%clk
00:56:59]} {[%emt 00:01:43]} 52. Bxf7 {[%clk 00:38:56]} {[%emt 00:00:30]} Rxf7
{[%clk 00:57:05]} {[%emt 00:00:24]} 53. Rxb6 {[%clk 00:39:19]} {[%emt
00:00:06]} Ra7 {[%clk 00:57:29]} {[%emt 00:00:07]} 54. Kf3 {[%clk 00:31:40]}
{[%emt 00:08:09]} a4 {[%clk 00:57:23]} {[%emt 00:00:36]} 55. Ke4 {[%clk
00:08:19]} {[%emt 00:23:50]} a3 {[%clk 00:57:41]} {[%emt 00:00:12]} 56. Rb1
{[%clk 00:08:43]} {[%emt 00:00:05]} Ra5 {[%clk 00:58:02]} {[%emt 00:00:10]} 57.
d4 {[%clk 00:06:22]} {[%emt 00:02:51]} a2 {[%clk 00:56:32]} {[%emt 00:02:00]}
58. Ra1 {[%clk 00:06:44]} {[%emt 00:00:09]} Kf6 {[%clk 00:56:56]} {[%emt
00:00:06]} 59. Rf1+ {[%clk 00:06:59]} {[%emt 00:00:13]} Ke6 {[%clk 00:57:19]}
{[%emt 00:00:08]} 60. Ra1 {[%clk 00:07:23]} {[%emt 00:00:06]} Ra4 {[%clk
00:57:38]} {[%emt 00:00:11]} 61. Kf3 {[%clk 00:03:19]} {[%emt 00:04:34]} Kd5
{[%clk 00:58:00]} {[%emt 00:00:08]} 62. Kg4 {[%clk 00:02:55]} {[%emt 00:00:55]}
Kxd4 {[%clk 00:58:07]} {[%emt 00:00:23]} 63. Kf5 {[%clk 00:03:18]} {[%emt
00:00:06]} Kc3 {[%clk 00:58:25]} {[%emt 00:00:12]} 64. Kg6 {[%clk 00:03:33]}
{[%emt 00:00:16]} Ra6+ {[%clk 00:58:39]} {[%emt 00:00:16]} 65. Kg7 {[%clk
00:03:43]} {[%emt 00:00:19]} Kb2 {[%clk 00:59:01]} {[%emt 00:00:08]} 66. Rxa2+
{[%clk 00:03:49]} {[%emt 00:00:24]} Kxa2 {[%clk 00:59:21]} {[%emt 00:00:11]}
0-1